[Event "Titled Tuesday Blitz June 27 Early 2023"]
[White "Tanenbaum, Zachary"]
[Black "Boraso, Alessio"]
[WhiteFideId "2060850"]
[BlackFideId "848077"]
[WhiteElo "2743"]
[BlackElo "2483"]
[Result "1-0"]
[Round "5"]
[TimeControl "180+2"]
[Date "2023.06.27"]
[WhiteClock "0:00:03"]
[BlackClock "0:00:02"]
[Board "57"]

1. e4 {[%clk 0:03:00]}  c5 {[%clk 0:02:57]} 2. Nf3 {[%clk 0:03:00]}  Nf6 {[%clk 0:02:56]} 3. e5 {[%clk 0:03:00]}  Nd5 {[%clk 0:02:56]} 4. Nc3 {[%clk 0:03:00]}  e6 {[%clk 0:02:55]} 5. Nxd5 {[%clk 0:02:59]}  exd5 {[%clk 0:02:56]} 6. d4 {[%clk 0:02:59]}  Nc6 {[%clk 0:02:55]} 7. dxc5 {[%clk 0:03:00]}  Bxc5 {[%clk 0:02:55]} 8. Qxd5 {[%clk 0:02:59]}  Qb6 {[%clk 0:02:56]} 9. Bc4 {[%clk 0:02:56]}  Bxf2+ {[%clk 0:02:56]} 10. Ke2 {[%clk 0:02:56]}  O-O {[%clk 0:02:54]} 11. Rf1 {[%clk 0:02:56]}  Bc5 {[%clk 0:02:53]} 12. Ng5 {[%clk 0:02:51]}  Nd4+ {[%clk 0:02:53]} 13. Kd3 {[%clk 0:02:18]}  Ne6 {[%clk 0:02:54]} 14. Ne4 {[%clk 0:01:35]}  d6 {[%clk 0:02:27]} 15. exd6 {[%clk 0:01:26]}  Rd8 {[%clk 0:02:22]} 16. c3 {[%clk 0:00:37]}  Bxd6 {[%clk 0:02:20]} 17. Kc2 {[%clk 0:00:38]}  Bf4 {[%clk 0:01:47]} 18. Qh5 {[%clk 0:00:30]}  g6 {[%clk 0:01:24]} 19. Nf6+ {[%clk 0:00:29]}  Kg7 {[%clk 0:01:18]} 20. Qxh7+ {[%clk 0:00:30]}  Kxf6 {[%clk 0:01:18]} 21. Rxf4+ {[%clk 0:00:28]}  Ke5 {[%clk 0:00:57]} 22. Rxf7 {[%clk 0:00:17]}  Qc6 {[%clk 0:00:41]} 23. Bf4+ {[%clk 0:00:15]}  Nxf4 {[%clk 0:00:36]} 24. Re1+ {[%clk 0:00:15]}  Kd6 {[%clk 0:00:36]} 25. Rf6+ {[%clk 0:00:15]}  Kc5 {[%clk 0:00:32]} 26. Rxc6+ {[%clk 0:00:14]}  bxc6 {[%clk 0:00:33]} 27. b4+ {[%clk 0:00:08]}  Kb6 {[%clk 0:00:31]} 28. Qe7 {[%clk 0:00:06]}  Bf5+ {[%clk 0:00:30]} 29. Kb3 {[%clk 0:00:07]}  Nd5 {[%clk 0:00:16]} 30. Bxd5 {[%clk 0:00:07]}  Rxd5 {[%clk 0:00:17]} 31. a4 {[%clk 0:00:07]}  a5 {[%clk 0:00:13]} 32. bxa5+ {[%clk 0:00:05]}  Raxa5 {[%clk 0:00:09]} 33. Qb4+ {[%clk 0:00:05]}  Ka6 {[%clk 0:00:08]} 34. Re7 {[%clk 0:00:04]}  Bd7 {[%clk 0:00:04]} 35. c4 {[%clk 0:00:05]}  Rd3+ {[%clk 0:00:02]} 36. Kc2 {[%clk 0:00:05]}  Rd4 {[%clk 0:00:03]} 37. Kc3 {[%clk 0:00:04]}  Rd1 {[%clk 0:00:03]} 38. Kc2 {[%clk 0:00:04]}  Rd4 {[%clk 0:00:03]} 39. Qc3 {[%clk 0:00:04]}  Rd6 {[%clk 0:00:03]} 40. c5 {[%clk 0:00:04]}  Bf5+ {[%clk 0:00:04]} 41. Kc1 {[%clk 0:00:04]}  Rd5 {[%clk 0:00:01]} 42. Qc4+ {[%clk 0:00:04]}  Rb5 {[%clk 0:00:02]} 43. axb5+ {[%clk 0:00:04]}  Ka5 {[%clk 0:00:02]} 44. Ra7# {[%clk 0:00:03]} 1-0


[Site "https://www.chess.com"]

[Event "Titled Tuesday Blitz June 27 Early 2023"]
[White "Sevian, Samuel"]
[Black "djokovic74"]
[WhiteFideId "2040506"]
[WhiteElo "3058"]
[BlackElo "2670"]
[Result "0-1"]
[Round "5"]
[TimeControl "180+2"]
[Date "2023.06.27"]
[WhiteClock "0:01:53"]
[BlackClock "0:01:09"]
[Board "62"]

1. e4 {[%clk 0:02:33]}  e6 {[%clk 0:02:59]} 2. d4 {[%clk 0:02:32]}  d5 {[%clk 0:03:00]} 3. Nd2 {[%clk 0:02:33]}  c5 {[%clk 0:03:00]} 4. Ngf3 {[%clk 0:02:33]}  cxd4 {[%clk 0:02:59]} 5. Nxd4 {[%clk 0:02:33]}  Nc6 {[%clk 0:03:00]} 6. Nxc6 {[%clk 0:02:33]}  bxc6 {[%clk 0:03:00]} 7. Bd3 {[%clk 0:02:34]}  Bd6 {[%clk 0:02:38]} 8. Qe2 {[%clk 0:02:34]}  Ne7 {[%clk 0:02:36]} 9. e5 {[%clk 0:02:33]}  Bc7 {[%clk 0:02:36]} 10. Nf3 {[%clk 0:02:34]}  a5 {[%clk 0:02:33]} 11. g3 {[%clk 0:02:33]}  Bb7 {[%clk 0:02:31]} 12. O-O {[%clk 0:02:33]}  Qc8 {[%clk 0:02:26]} 13. Rd1 {[%clk 0:02:31]}  c5 {[%clk 0:02:18]} 14. c4 {[%clk 0:02:31]}  dxc4 {[%clk 0:02:13]} 15. Bxc4 {[%clk 0:02:30]}  O-O {[%clk 0:02:13]} 16. h4 {[%clk 0:02:29]}  Bd5 {[%clk 0:02:08]} 17. Bg5 {[%clk 0:02:28]}  Bxc4 {[%clk 0:01:52]} 18. Qxc4 {[%clk 0:02:29]}  Nd5 {[%clk 0:01:53]} 19. h5 {[%clk 0:02:27]}  h6 {[%clk 0:01:51]} 20. Bh4 {[%clk 0:02:20]}  Qb8 {[%clk 0:01:48]} 21. Qxc5 {[%clk 0:02:17]}  Qxb2 {[%clk 0:01:37]} 22. Rab1 {[%clk 0:02:16]}  Qxa2 {[%clk 0:01:36]} 23. Rb7 {[%clk 0:02:13]}  Qe2 {[%clk 0:01:29]} 24. Rxd5 {[%clk 0:02:07]}  Qxf3 {[%clk 0:01:13]} 25. Rxc7 {[%clk 0:01:59]}  Qxd5 {[%clk 0:01:11]} 26. Qe3 {[%clk 0:01:53]}  Rfc8 {[%clk 0:01:09]} 0-1


[Site "https://www.chess.com"]

[Event "Titled Tuesday Blitz June 27 Early 2023"]
[White "Vokhidov, Shamsiddin"]
[Black "Jia, Haoxiang"]
[WhiteFideId "14204223"]
[BlackFideId "8602999"]
[WhiteElo "2924"]
[BlackElo "2631"]
[Result "1-0"]
[Round "5"]
[TimeControl "180+2"]
[Date "2023.06.27"]
[WhiteClock "0:02:51"]
[BlackClock "0:02:12"]
[Board "67"]

1. e4 {[%clk 0:03:00]}  c5 {[%clk 0:02:52]} 2. Nf3 {[%clk 0:03:00]}  e6 {[%clk 0:02:51]} 3. d4 {[%clk 0:03:00]}  cxd4 {[%clk 0:02:52]} 4. Nxd4 {[%clk 0:03:01]}  a6 {[%clk 0:02:52]} 5. Nc3 {[%clk 0:03:00]}  Qc7 {[%clk 0:02:53]} 6. Bd3 {[%clk 0:03:00]}  Nf6 {[%clk 0:02:52]} 7. Qe2 {[%clk 0:03:00]}  b5 {[%clk 0:02:50]} 8. e5 {[%clk 0:03:00]}  b4 {[%clk 0:02:49]} 9. Ncb5 {[%clk 0:02:53]}  axb5 {[%clk 0:02:46]} 10. Nxb5 {[%clk 0:02:54]}  Qc6 {[%clk 0:02:36]} 11. exf6 {[%clk 0:02:53]}  gxf6 {[%clk 0:02:12]} 12. Be4 {[%clk 0:02:51]} 1-0


[Site "https://www.chess.com"]

[Event "Titled Tuesday Blitz June 27 Early 2023"]
[White "Gharibyan, Mamikon"]
[Black "De La Villa Garcia, Jesus Maria"]
[WhiteFideId "13308300"]
[BlackFideId "2200040"]
[WhiteElo "2803"]
[BlackElo "2598"]
[Result "1-0"]
[Round "5"]
[TimeControl "180+2"]
[Date "2023.06.27"]
[WhiteClock "0:00:06"]
[BlackClock "0:00:00"]
[Board "70"]

1. e4 {[%clk 0:03:00]}  c6 {[%clk 0:02:59]} 2. Nf3 {[%clk 0:02:56]}  d5 {[%clk 0:03:00]} 3. d3 {[%clk 0:02:56]}  dxe4 {[%clk 0:03:00]} 4. dxe4 {[%clk 0:02:56]}  Qxd1+ {[%clk 0:03:00]} 5. Kxd1 {[%clk 0:02:56]}  Nf6 {[%clk 0:03:01]} 6. Nbd2 {[%clk 0:02:54]}  g6 {[%clk 0:03:01]} 7. Ne5 {[%clk 0:02:48]}  Bh6 {[%clk 0:03:00]} 8. Bc4 {[%clk 0:02:45]}  O-O {[%clk 0:02:59]} 9. f3 {[%clk 0:02:44]}  Nbd7 {[%clk 0:02:58]} 10. Nd3 {[%clk 0:02:42]}  b5 {[%clk 0:02:54]} 11. Bb3 {[%clk 0:02:42]}  a5 {[%clk 0:02:55]} 12. a4 {[%clk 0:02:41]}  b4 {[%clk 0:02:53]} 13. Nc4 {[%clk 0:02:41]}  Bxc1 {[%clk 0:02:53]} 14. Rxc1 {[%clk 0:02:41]}  Ba6 {[%clk 0:02:53]} 15. c3 {[%clk 0:02:39]}  Bxc4 {[%clk 0:02:44]} 16. Bxc4 {[%clk 0:02:33]}  Ne8 {[%clk 0:02:33]} 17. cxb4 {[%clk 0:02:30]}  axb4 {[%clk 0:02:34]} 18. b3 {[%clk 0:02:27]}  Rb8 {[%clk 0:02:30]} 19. e5 {[%clk 0:02:09]}  Nc7 {[%clk 0:02:22]} 20. Ke2 {[%clk 0:01:55]}  Nb6 {[%clk 0:02:11]} 21. Nc5 {[%clk 0:01:40]}  Rfd8 {[%clk 0:02:05]} 22. e6 {[%clk 0:01:36]}  f5 {[%clk 0:01:43]} 23. Rhd1 {[%clk 0:01:01]}  Ncd5 {[%clk 0:01:43]} 24. Bxd5 {[%clk 0:00:59]}  Nxd5 {[%clk 0:01:44]} 25. Nd7 {[%clk 0:00:42]}  Rbc8 {[%clk 0:01:43]} 26. Rd4 {[%clk 0:00:39]}  Kg7 {[%clk 0:01:32]} 27. Rc5 {[%clk 0:00:39]}  Nf6 {[%clk 0:00:46]} 28. Kd3 {[%clk 0:00:31]}  Nd5 {[%clk 0:00:40]} 29. a5 {[%clk 0:00:23]}  g5 {[%clk 0:00:36]} 30. Kc4 {[%clk 0:00:19]}  Nf4 {[%clk 0:00:30]} 31. Rxf4 {[%clk 0:00:16]}  gxf4 {[%clk 0:00:30]} 32. Rxf5 {[%clk 0:00:13]}  Ra8 {[%clk 0:00:27]} 33. Kxb4 {[%clk 0:00:13]}  Rdc8 {[%clk 0:00:19]} 34. Nb6 {[%clk 0:00:09]}  Rcb8 {[%clk 0:00:19]} 35. Kc4 {[%clk 0:00:09]}  Kg6 {[%clk 0:00:17]} 36. Rc5 {[%clk 0:00:07]}  Ra7 {[%clk 0:00:17]} 37. b4 {[%clk 0:00:07]}  Rd8 {[%clk 0:00:12]} 38. Nd7 {[%clk 0:00:07]}  Ra6 {[%clk 0:00:08]} 39. Ne5+ {[%clk 0:00:06]}  Kf6 {[%clk 0:00:08]} 40. Rxc6 {[%clk 0:00:07]}  Raa8 {[%clk 0:00:07]} 41. Nd7+ {[%clk 0:00:07]}  Kf5 {[%clk 0:00:07]} 42. a6 {[%clk 0:00:08]}  Rg8 {[%clk 0:00:05]} 43. b5 {[%clk 0:00:06]}  Rxg2 {[%clk 0:00:05]} 44. Kc5 {[%clk 0:00:05]}  Rc2+ {[%clk 0:00:05]} 45. Kb6 {[%clk 0:00:05]}  Rb2 {[%clk 0:00:06]} 46. Nc5 {[%clk 0:00:05]}  Rd8 {[%clk 0:00:03]} 47. Rc7 {[%clk 0:00:05]}  Rd4 {[%clk 0:00:02]} 48. Nd7 {[%clk 0:00:04]}  Rdb4 {[%clk 0:00:02]} 49. Rc5+ {[%clk 0:00:04]}  Kxe6 {[%clk 0:00:02]} 50. Nb8 {[%clk 0:00:05]}  Ra4 {[%clk 0:00:02]} 51. a7 {[%clk 0:00:05]}  Rba2 {[%clk 0:00:03]} 52. Na6 {[%clk 0:00:05]}  Rxa6+ {[%clk 0:00:01]} 53. bxa6 {[%clk 0:00:06]}  Rb2+ {[%clk 0:00:00]} 54. Rb5 {[%clk 0:00:06]} 1-0


[Site "https://www.chess.com"]

[Event "Titled Tuesday Blitz June 27 Early 2023"]
[White "Gubajdullin, Alexei"]
[Black "Do Valle Cardoso, Lucas"]
[WhiteFideId "4141202"]
[BlackFideId "2163144"]
[WhiteElo "2591"]
[BlackElo "2775"]
[Result "1-0"]
[Round "5"]
[TimeControl "180+2"]
[Date "2023.06.27"]
[WhiteClock "0:02:20"]
[BlackClock "0:02:35"]
[Board "71"]

1. d4 {[%clk 0:03:00]}  d5 {[%clk 0:02:59]} 2. Nf3 {[%clk 0:03:00]}  Nf6 {[%clk 0:02:58]} 3. Bf4 {[%clk 0:03:00]}  e6 {[%clk 0:02:59]} 4. e3 {[%clk 0:03:01]}  c5 {[%clk 0:02:59]} 5. Nbd2 {[%clk 0:03:00]}  Nc6 {[%clk 0:02:58]} 6. c3 {[%clk 0:03:00]}  Bd6 {[%clk 0:02:59]} 7. Bg3 {[%clk 0:02:59]}  O-O {[%clk 0:02:58]} 8. Bd3 {[%clk 0:02:59]}  Re8 {[%clk 0:02:55]} 9. Ne5 {[%clk 0:02:58]}  Bxe5 {[%clk 0:02:56]} 10. dxe5 {[%clk 0:02:57]}  Nd7 {[%clk 0:02:56]} 11. Nf3 {[%clk 0:02:52]}  Qc7 {[%clk 0:02:48]} 12. Bc2 {[%clk 0:02:26]}  Ndxe5 {[%clk 0:02:44]} 13. Nxe5 {[%clk 0:02:24]}  Nxe5 {[%clk 0:02:43]} 14. Qh5 {[%clk 0:02:21]}  f5 {[%clk 0:02:35]} 15. Qxe8# {[%clk 0:02:20]} 1-0


[Site "https://www.chess.com"]

[Event "Titled Tuesday Blitz June 27 Early 2023"]
[White "Xu, Yi"]
[Black "profedechess93"]
[WhiteFideId "8605564"]
[WhiteElo "2746"]
[BlackElo "2576"]
[Result "1-0"]
[Round "5"]
[TimeControl "180+2"]
[Date "2023.06.27"]
[WhiteClock "0:00:48"]
[BlackClock "0:00:10"]
[Board "73"]

1. e4 {[%clk 0:03:00]}  e6 {[%clk 0:03:00]} 2. d4 {[%clk 0:03:00]}  d5 {[%clk 0:02:58]} 3. e5 {[%clk 0:02:59]}  c5 {[%clk 0:02:57]} 4. c3 {[%clk 0:02:59]}  Nc6 {[%clk 0:02:56]} 5. Nf3 {[%clk 0:02:59]}  Qb6 {[%clk 0:02:57]} 6. a3 {[%clk 0:02:58]}  c4 {[%clk 0:02:57]} 7. Nbd2 {[%clk 0:02:56]}  f6 {[%clk 0:02:57]} 8. Be2 {[%clk 0:02:50]}  fxe5 {[%clk 0:02:56]} 9. Nxe5 {[%clk 0:02:39]}  Nxe5 {[%clk 0:02:53]} 10. dxe5 {[%clk 0:02:39]}  Bc5 {[%clk 0:02:54]} 11. O-O {[%clk 0:02:39]}  Ne7 {[%clk 0:02:52]} 12. b4 {[%clk 0:02:35]}  cxb3 {[%clk 0:02:53]} 13. Nxb3 {[%clk 0:02:35]}  O-O {[%clk 0:02:53]} 14. a4 {[%clk 0:02:31]}  Rxf2 {[%clk 0:02:34]} 15. Rxf2 {[%clk 0:02:09]}  Bxf2+ {[%clk 0:02:34]} 16. Kh1 {[%clk 0:02:09]}  Nf5 {[%clk 0:02:32]} 17. Bd3 {[%clk 0:02:02]}  Bd7 {[%clk 0:02:00]} 18. a5 {[%clk 0:01:50]}  Qc6 {[%clk 0:01:55]} 19. Bd2 {[%clk 0:01:42]}  Rf8 {[%clk 0:01:52]} 20. Qh5 {[%clk 0:01:36]}  Qc7 {[%clk 0:01:28]} 21. Rf1 {[%clk 0:01:31]}  g6 {[%clk 0:01:14]} 22. Qh3 {[%clk 0:01:19]}  Bc5 {[%clk 0:00:59]} 23. Bg5 {[%clk 0:01:06]}  Ba4 {[%clk 0:00:20]} 24. Nxc5 {[%clk 0:00:54]}  Qxc5 {[%clk 0:00:21]} 25. Bf6 {[%clk 0:00:52]}  Qxc3 {[%clk 0:00:10]} 26. Bxf5 {[%clk 0:00:48]} 1-0


[Site "https://www.chess.com"]

[Event "Titled Tuesday Blitz June 27 Early 2023"]
[White "chess123456s"]
[Black "Csonka, Balazs"]
[BlackFideId "742910"]
[WhiteElo "2562"]
[BlackElo "2725"]
[Result "1/2-1/2"]
[Round "5"]
[TimeControl "180+2"]
[Date "2023.06.27"]
[WhiteClock "0:00:28"]
[BlackClock "0:00:05"]
[Board "75"]

1. e4 {[%clk 0:03:00]}  e6 {[%clk 0:03:00]} 2. d4 {[%clk 0:03:00]}  d5 {[%clk 0:02:59]} 3. Nc3 {[%clk 0:03:01]}  Nf6 {[%clk 0:02:57]} 4. e5 {[%clk 0:03:01]}  Nfd7 {[%clk 0:02:57]} 5. f4 {[%clk 0:03:02]}  c5 {[%clk 0:02:57]} 6. Nf3 {[%clk 0:03:02]}  Nc6 {[%clk 0:02:57]} 7. Be3 {[%clk 0:03:02]}  cxd4 {[%clk 0:02:57]} 8. Nxd4 {[%clk 0:03:02]}  Qb6 {[%clk 0:02:58]} 9. Qd2 {[%clk 0:03:02]}  Qxb2 {[%clk 0:02:57]} 10. Rb1 {[%clk 0:03:02]}  Qa3 {[%clk 0:02:57]} 11. Bb5 {[%clk 0:03:03]}  Nxd4 {[%clk 0:02:57]} 12. Bxd4 {[%clk 0:03:04]}  a6 {[%clk 0:02:57]} 13. Bxd7+ {[%clk 0:03:04]}  Bxd7 {[%clk 0:02:57]} 14. Rb3 {[%clk 0:03:05]}  Qa5 {[%clk 0:02:57]} 15. Bb6 {[%clk 0:02:45]}  Qb4 {[%clk 0:02:40]} 16. Rxb4 {[%clk 0:02:42]}  Bxb4 {[%clk 0:02:41]} 17. O-O {[%clk 0:02:40]}  Rc8 {[%clk 0:02:40]} 18. Bd4 {[%clk 0:02:40]}  O-O {[%clk 0:02:34]} 19. Rb1 {[%clk 0:02:30]}  a5 {[%clk 0:02:28]} 20. Qd3 {[%clk 0:02:21]}  Rc4 {[%clk 0:02:15]} 21. Ne2 {[%clk 0:02:16]}  b5 {[%clk 0:02:13]} 22. c3 {[%clk 0:02:08]}  Be7 {[%clk 0:02:13]} 23. f5 {[%clk 0:02:04]}  Rfc8 {[%clk 0:01:31]} 24. f6 {[%clk 0:02:03]}  gxf6 {[%clk 0:01:31]} 25. Qg3+ {[%clk 0:02:02]}  Kh8 {[%clk 0:01:30]} 26. exf6 {[%clk 0:02:02]}  Bf8 {[%clk 0:01:31]} 27. Nf4 {[%clk 0:01:48]}  b4 {[%clk 0:01:29]} 28. Rc1 {[%clk 0:01:05]}  Rxd4 {[%clk 0:01:26]} 29. cxd4 {[%clk 0:01:01]}  Rxc1+ {[%clk 0:01:27]} 30. Kf2 {[%clk 0:01:02]}  Rc2+ {[%clk 0:01:06]} 31. Ke3 {[%clk 0:01:01]}  Rc3+ {[%clk 0:01:05]} 32. Nd3 {[%clk 0:00:57]}  Bb5 {[%clk 0:00:47]} 33. Qb8 {[%clk 0:00:56]}  Rxd3+ {[%clk 0:00:45]} 34. Kf2 {[%clk 0:00:50]}  Kg8 {[%clk 0:00:39]} 35. Qxb5 {[%clk 0:00:49]}  Rxd4 {[%clk 0:00:30]} 36. Qxa5 {[%clk 0:00:47]}  Rf4+ {[%clk 0:00:30]} 37. Ke3 {[%clk 0:00:47]}  Rxf6 {[%clk 0:00:31]} 38. Qd8 {[%clk 0:00:45]}  Kg7 {[%clk 0:00:30]} 39. Qb6 {[%clk 0:00:40]}  h5 {[%clk 0:00:18]} 40. g3 {[%clk 0:00:39]}  Kg6 {[%clk 0:00:17]} 41. Qb8 {[%clk 0:00:33]}  Kg7 {[%clk 0:00:08]} 42. Qe5 {[%clk 0:00:30]}  Kg6 {[%clk 0:00:08]} 43. Qb8 {[%clk 0:00:29]}  Kg7 {[%clk 0:00:04]} 44. Qe5 {[%clk 0:00:28]}  Kg6 {[%clk 0:00:05]} 45. Qb8 {[%clk 0:00:28]} 1/2-1/2


[Site "https://www.chess.com"]

[Event "Titled Tuesday Blitz June 27 Early 2023"]
[White "Postny, Evgeny"]
[Black "Krutko, Anatoly"]
[WhiteFideId "2804344"]
[BlackFideId "4185862"]
[WhiteElo "2717"]
[BlackElo "2558"]
[Result "1-0"]
[Round "5"]
[TimeControl "180+2"]
[Date "2023.06.27"]
[WhiteClock "0:01:34"]
[BlackClock "0:00:14"]
[Board "77"]

1. e4 {[%clk 0:03:00]}  g6 {[%clk 0:02:59]} 2. d4 {[%clk 0:03:00]}  Bg7 {[%clk 0:02:59]} 3. c4 {[%clk 0:03:01]}  d6 {[%clk 0:02:57]} 4. Nc3 {[%clk 0:03:01]}  Nf6 {[%clk 0:02:58]} 5. Bd3 {[%clk 0:02:55]}  O-O {[%clk 0:02:58]} 6. Nge2 {[%clk 0:02:56]}  Nc6 {[%clk 0:02:55]} 7. O-O {[%clk 0:02:52]}  e5 {[%clk 0:02:55]} 8. d5 {[%clk 0:02:53]}  Ne7 {[%clk 0:02:56]} 9. Ng3 {[%clk 0:02:48]}  Nd7 {[%clk 0:02:53]} 10. Rb1 {[%clk 0:02:39]}  a5 {[%clk 0:02:53]} 11. a3 {[%clk 0:02:38]}  f5 {[%clk 0:02:50]} 12. exf5 {[%clk 0:02:36]}  gxf5 {[%clk 0:02:50]} 13. f4 {[%clk 0:02:37]}  e4 {[%clk 0:02:50]} 14. Bc2 {[%clk 0:02:35]}  Nc5 {[%clk 0:02:41]} 15. Nce2 {[%clk 0:02:24]}  a4 {[%clk 0:02:32]} 16. Be3 {[%clk 0:02:23]}  Bd7 {[%clk 0:02:31]} 17. Bd4 {[%clk 0:02:23]}  Ng6 {[%clk 0:02:28]} 18. Bxg7 {[%clk 0:02:19]}  Kxg7 {[%clk 0:02:29]} 19. Qd4+ {[%clk 0:02:20]}  Kg8 {[%clk 0:02:29]} 20. Nh5 {[%clk 0:02:15]}  Rf7 {[%clk 0:02:25]} 21. Neg3 {[%clk 0:02:04]}  Qe7 {[%clk 0:02:21]} 22. Rbe1 {[%clk 0:01:53]}  Re8 {[%clk 0:02:19]} 23. Re3 {[%clk 0:01:48]}  b6 {[%clk 0:02:18]} 24. Ne2 {[%clk 0:01:47]}  Nb7 {[%clk 0:01:47]} 25. Rg3 {[%clk 0:01:45]}  Qh4 {[%clk 0:01:42]} 26. Rg5 {[%clk 0:01:37]}  Ref8 {[%clk 0:00:14]} 27. h3 {[%clk 0:01:34]} 1-0


[Site "https://www.chess.com"]

[Event "Titled Tuesday Blitz June 27 Early 2023"]
[White "Kantor, Gergely"]
[Black "Droin, Augustin"]
[WhiteFideId "751499"]
[BlackFideId "45105987"]
[WhiteElo "2708"]
[BlackElo "2534"]
[Result "1-0"]
[Round "5"]
[TimeControl "180+2"]
[Date "2023.06.27"]
[WhiteClock "0:01:30"]
[BlackClock "0:01:14"]
[Board "78"]

1. d4 {[%clk 0:03:00]}  Nf6 {[%clk 0:02:58]} 2. Nf3 {[%clk 0:03:01]}  e6 {[%clk 0:02:57]} 3. g3 {[%clk 0:03:01]}  d5 {[%clk 0:02:56]} 4. Bg2 {[%clk 0:03:02]}  Bb4+ {[%clk 0:02:56]} 5. c3 {[%clk 0:03:01]}  Be7 {[%clk 0:02:55]} 6. O-O {[%clk 0:03:01]}  O-O {[%clk 0:02:56]} 7. Nbd2 {[%clk 0:03:01]}  c5 {[%clk 0:02:55]} 8. dxc5 {[%clk 0:03:01]}  Bxc5 {[%clk 0:02:56]} 9. Ne5 {[%clk 0:02:58]}  Nbd7 {[%clk 0:02:54]} 10. Nd3 {[%clk 0:02:58]}  Bb6 {[%clk 0:02:54]} 11. c4 {[%clk 0:02:58]}  d4 {[%clk 0:02:51]} 12. b4 {[%clk 0:02:58]}  e5 {[%clk 0:02:45]} 13. c5 {[%clk 0:02:58]}  Bc7 {[%clk 0:02:45]} 14. Bb2 {[%clk 0:02:52]}  Re8 {[%clk 0:02:45]} 15. Nc4 {[%clk 0:02:41]}  Rb8 {[%clk 0:02:37]} 16. a4 {[%clk 0:02:37]}  Nf8 {[%clk 0:02:29]} 17. b5 {[%clk 0:02:34]}  b6 {[%clk 0:02:26]} 18. Nb4 {[%clk 0:02:27]}  Bb7 {[%clk 0:02:10]} 19. Nc6 {[%clk 0:01:43]}  Bxc6 {[%clk 0:02:07]} 20. Bxc6 {[%clk 0:01:43]}  N6d7 {[%clk 0:02:02]} 21. cxb6 {[%clk 0:01:39]}  axb6 {[%clk 0:02:03]} 22. e3 {[%clk 0:01:39]}  Qf6 {[%clk 0:01:34]} 23. exd4 {[%clk 0:01:37]}  Red8 {[%clk 0:01:35]} 24. d5 {[%clk 0:01:33]}  Nc5 {[%clk 0:01:34]} 25. f4 {[%clk 0:01:33]}  Ng6 {[%clk 0:01:28]} 26. fxe5 {[%clk 0:01:33]}  Qg5 {[%clk 0:01:26]} 27. d6 {[%clk 0:01:33]}  Rbc8 {[%clk 0:01:14]} 28. Qf3 {[%clk 0:01:30]} 1-0


[Site "https://www.chess.com"]

[Event "Titled Tuesday Blitz June 27 Early 2023"]
[White "Cherniaiev, Tykhon"]
[Black "Koutsin, Sergey"]
[WhiteFideId "14182360"]
[BlackFideId "14101483"]
[WhiteElo "2706"]
[BlackElo "2497"]
[Result "1-0"]
[Round "5"]
[TimeControl "180+2"]
[Date "2023.06.27"]
[WhiteClock "0:00:11"]
[BlackClock "0:00:00"]
[Board "79"]

1. Nf3 {[%clk 0:03:00]}  Nf6 {[%clk 0:02:57]} 2. d4 {[%clk 0:03:00]}  d5 {[%clk 0:02:57]} 3. c4 {[%clk 0:03:01]}  e6 {[%clk 0:02:57]} 4. Nc3 {[%clk 0:03:00]}  c5 {[%clk 0:02:55]} 5. cxd5 {[%clk 0:03:00]}  exd5 {[%clk 0:02:55]} 6. g3 {[%clk 0:03:01]}  Nc6 {[%clk 0:02:50]} 7. Bg2 {[%clk 0:03:00]}  c4 {[%clk 0:02:49]} 8. O-O {[%clk 0:02:59]}  Bb4 {[%clk 0:02:47]} 9. Bg5 {[%clk 0:02:58]}  Be6 {[%clk 0:02:45]} 10. Ne5 {[%clk 0:02:51]}  O-O {[%clk 0:02:37]} 11. Bxf6 {[%clk 0:02:39]}  gxf6 {[%clk 0:02:18]} 12. Nxc4 {[%clk 0:02:38]}  dxc4 {[%clk 0:02:15]} 13. d5 {[%clk 0:02:38]}  Bxc3 {[%clk 0:01:39]} 14. bxc3 {[%clk 0:02:39]}  Na5 {[%clk 0:01:39]} 15. dxe6 {[%clk 0:02:38]}  fxe6 {[%clk 0:01:39]} 16. Qa4 {[%clk 0:02:36]}  Qc7 {[%clk 0:01:35]} 17. Rfd1 {[%clk 0:01:57]}  Rad8 {[%clk 0:01:34]} 18. Qb4 {[%clk 0:01:52]}  b6 {[%clk 0:01:27]} 19. Bf3 {[%clk 0:01:24]}  Rf7 {[%clk 0:00:58]} 20. Rxd8+ {[%clk 0:01:03]}  Qxd8 {[%clk 0:00:58]} 21. Kg2 {[%clk 0:01:04]}  Rd7 {[%clk 0:00:57]} 22. Qb5 {[%clk 0:01:01]}  Kg7 {[%clk 0:00:40]} 23. Qh5 {[%clk 0:00:56]}  f5 {[%clk 0:00:33]} 24. e4 {[%clk 0:00:52]}  Qf6 {[%clk 0:00:31]} 25. exf5 {[%clk 0:00:52]}  Qxf5 {[%clk 0:00:27]} 26. Qe8 {[%clk 0:00:23]}  Rf7 {[%clk 0:00:26]} 27. Qa8 {[%clk 0:00:23]}  Rf8 {[%clk 0:00:20]} 28. Qe4 {[%clk 0:00:15]}  Qxe4 {[%clk 0:00:20]} 29. Bxe4 {[%clk 0:00:16]}  h6 {[%clk 0:00:20]} 30. Rd1 {[%clk 0:00:16]}  Kf6 {[%clk 0:00:21]} 31. Rd7 {[%clk 0:00:15]}  Rf7 {[%clk 0:00:21]} 32. Rd8 {[%clk 0:00:15]}  Rc7 {[%clk 0:00:20]} 33. Rh8 {[%clk 0:00:15]}  Ke5 {[%clk 0:00:15]} 34. Bf3 {[%clk 0:00:14]}  Rd7 {[%clk 0:00:15]} 35. Rxh6 {[%clk 0:00:14]}  Rd3 {[%clk 0:00:16]} 36. Bg4 {[%clk 0:00:13]}  Rxc3 {[%clk 0:00:15]} 37. Rxe6+ {[%clk 0:00:13]}  Kd5 {[%clk 0:00:16]} 38. h4 {[%clk 0:00:13]}  Rd3 {[%clk 0:00:09]} 39. h5 {[%clk 0:00:12]}  Rd4 {[%clk 0:00:09]} 40. Bf5 {[%clk 0:00:11]}  Kc5 {[%clk 0:00:06]} 41. h6 {[%clk 0:00:11]}  Rd8 {[%clk 0:00:05]} 42. h7 {[%clk 0:00:11]}  c3 {[%clk 0:00:06]} 43. Rg6 {[%clk 0:00:11]}  Rh8 {[%clk 0:00:03]} 44. Rg8 {[%clk 0:00:11]}  Rxh7 {[%clk 0:00:04]} 45. Bxh7 {[%clk 0:00:12]}  b5 {[%clk 0:00:04]} 46. Ra8 {[%clk 0:00:11]}  Nc6 {[%clk 0:00:04]} 47. Be4 {[%clk 0:00:11]}  b4 {[%clk 0:00:02]} 48. Rc8 {[%clk 0:00:11]}  Kd4 {[%clk 0:00:03]} 49. Bxc6 {[%clk 0:00:11]}  c2 {[%clk 0:00:00]} 50. Ba4 {[%clk 0:00:11]} 1-0


[Site "https://www.chess.com"]